bitfinex/quotes_SOLUSD_20250514
["timestamp","ask_amount","ask_price","bid_price","bid_amount"]
[1747249328850,155.37935376,176.5,176.49,9.59291914]
[1747249329151,161.04507613,176.5,176.49,9.59291914]
[1747249331133,156.04507613,176.5,176.49,9.59291914]
[1747249331945,138.86572237,176.5,176.49,9.59291914]
[1747249332134,138.86572237,176.5,176.49,26.7722729]
[1747249332336,133.2,176.5,176.49,26.7722729]
[1747249332941,5.66443865,176.54,176.49,26.7722729]
[1747249333140,5.66443865,176.54,176.53,9.59291914]
[1747249334760,5.66421409,176.55,176.54,9.59291914]
[1747249335056,5.66421409,176.55,176.54,26.7722729]
[1747249335460,133.2,176.56,176.54,9.59291914]
[1747249335630,138.86387383,176.56,176.55,9.59291914]
[1747249336044,133.2,176.56,176.55,26.7722729]
[1747249336471,138.863797,176.56,176.55,9.59291914]
[1747249336645,133.2,176.56,176.55,9.59291914]
[1747249336849,138.863797,176.56,176.55,9.59291914]
[1747249337043,185.0,176.61,176.6,9.59291914]
[1747249337247,159.2,176.61,176.6,9.59291914]
[1747249337567,138.86219353,176.61,176.6,9.59291914]
[1747249340944,156.04154729,176.61,176.6,9.59291914]
[1747249341166,138.86219353,176.61,176.6,9.59291914]
[1747249341339,156.04154729,176.61,176.6,9.59291914]
[1747249343835,138.86219353,176.61,176.6,9.59291914]
[1747249344144,156.04154729,176.61,176.6,9.59291914]
[1747249344574,138.86219353,176.61,176.6,9.59291914]
[1747249345867,5.66219353,176.61,176.6,26.7722729]
[1747249346384,5.66155239,176.63,176.62,9.59291914]
[1747249346738,5.66123188,176.64,176.62,9.59291914]
[1747249347873,22.84058564,176.64,176.63,9.59291914]
[1747249348061,26.0,176.62,176.61,9.59291914]
[1747249348372,43.17935376,176.62,176.61,9.59291914]
[1747249348568,26.0,176.62,176.61,9.59291914]
[1747249349873,133.2,176.63,176.61,26.7722729]
[1747249350075,138.86164001,176.63,176.62,9.59291914]
[1747249353079,156.04099377,176.63,176.62,9.59291914]
[1747249354084,138.86164001,176.63,176.62,9.59291914]
[1747249354272,156.04099377,176.63,176.62,9.59291914]
[1747249355176,156.04099377,176.63,176.61,9.59291914]
[1747249355365,156.04099377,176.63,176.6,9.59291914]
[1747249355366,150.37935376,176.62,176.6,9.59291914]
[1747249355688,26.0,176.59,176.58,9.59291914]
[1747249355858,133.2,176.58,176.56,9.59291914]
[1747249356059,199.22218376,176.57,176.56,9.59291914]
[1747249356279,66.02218376,176.57,176.55,9.59291914]
[1747249356472,34.35870752,176.56,176.54,9.59291914]
[1747249356668,26.0,176.53,176.52,9.59291914]
[1747249356865,43.17935376,176.53,176.52,9.59291914]
[1747249357976,43.17935376,176.53,176.51,9.59291914]
[1747249358284,48.8444342,176.52,176.49,9.59291914]
[1747249358469,17.17935376,176.5,176.49,9.59291914]
[1747249360084,43.17935376,176.5,176.49,9.59291914]
[1747249360381,26.0,176.49,176.46,9.59291914]
[1747249360595,26.0,176.49,176.47,9.59291914]
[1747249360880,26.0,176.49,176.48,9.59291914]
[1747249361182,26.0,176.49,176.47,9.59291914]
[1747249361586,26.0,176.49,176.48,9.59291914]
[1747249361790,43.17935376,176.49,176.47,9.59291914]
[1747249361990,17.17935376,176.48,176.47,9.59291914]
[1747249362289,22.84571822,176.48,176.47,9.59291914]
[1747249363669,5.66636446,176.48,176.47,9.59291914]
[1747249364170,31.66611552,176.49,176.48,9.59291914]
[1747249364373,48.84546928,176.49,176.48,9.59291914]
[1747249367278,31.66611552,176.49,176.48,9.59291914]
[1747249367505,48.84546928,176.49,176.48,9.59291914]
[1747249370313,31.66611552,176.49,176.48,9.59291914]
[1747249370509,48.84546928,176.49,176.48,9.59291914]
[1747249371702,139.7291,176.48,176.46,9.59291914]
[1747249371915,181.37935376,176.47,176.46,9.59291914]
[1747249372674,26.0,176.44,176.43,9.59291914]
[1747249372907,138.2,176.43,176.42,9.59291914]
[1747249373078,155.37935376,176.43,176.42,9.59291914]
[1747249373713,155.37935376,176.43,176.42,9.85285126]
[1747249374215,138.2,176.43,176.42,9.85285126]
[1747249374779,138.2,176.43,176.42,27.03220502]
[1747249375187,43.17935376,176.46,176.45,9.59291914]
[1747249375387,48.84636044,176.46,176.45,9.59291914]
[1747249375709,48.84636044,176.46,176.45,9.85285126]
[1747249376006,31.66700668,176.46,176.45,9.85285126]
[1747249376508,48.84636044,176.46,176.45,9.85285126]
[1747249379692,31.66700668,176.46,176.45,9.85285126]
[1747249379895,48.84636044,176.46,176.45,9.85285126]
[1747249382320,5.66700668,176.46,176.45,9.85285126]
[1747249382494,143.8666791,176.48,176.47,9.59291914]
[1747249382695,5.66609944,176.49,176.48,9.59291914]
[1747249386804,22.8454532,176.49,176.48,9.59291914]
[1747249387428,5.66609944,176.49,176.48,9.59291914]
[1747249387736,22.8454532,176.49,176.48,9.59291914]
[1747249388720,5.66609944,176.49,176.48,9.59291914]
[1747249389327,22.8454532,176.49,176.48,9.59291914]
[1747249392421,5.66609944,176.49,176.48,9.59291914]
[1747249393359,22.8454532,176.49,176.48,9.59291914]
[1747249395627,48.8454532,176.49,176.48,9.59291914]
[1747249399917,48.8454532,176.49,176.47,9.59291914]
[1747249399918,138.2,176.48,176.47,9.59291914]
[1747249400121,17.17935376,176.48,176.47,9.59291914]
[1747249402630,22.84571822,176.48,176.46,9.59291914]
[1747249402836,43.17935376,176.47,176.46,9.59291914]
[1747249404530,48.84603931,176.47,176.46,9.59291914]
[1747249404730,31.66668555,176.47,176.46,9.59291914]
[1747249404945,169.86668555,176.47,176.46,9.59291914]
[1747249406348,31.66668555,176.47,176.46,9.59291914]
[1747249406536,5.66668555,176.47,176.46,9.59291914]
[1747249407034,22.84603931,176.47,176.46,9.59291914]
[1747249409156,5.66668555,176.47,176.46,9.59291914]
[1747249410134,22.84603931,176.47,176.46,9.59291914]
[1747249411431,5.66668555,176.47,176.46,9.59291914]
[1747249411834,22.84603931,176.47,176.46,9.59291914]
[1747249413038,22.84603931,176.47,176.45,9.59291914]
[1747249413334,17.17935376,176.46,176.45,9.59291914]
[1747249414368,26.0,176.44,176.43,9.59291914]
[1747249414559,43.17935376,176.44,176.43,9.59291914]
[1747249416760,48.84700281,176.44,176.43,9.59291914]
[1747249418034,138.2,176.43,176.42,9.59291914]
[1747249418231,155.37935376,176.43,176.42,9.59291914]
[1747249418454,155.37935376,176.43,176.41,9.59291914]
[1747249418641,22.84764533,176.42,176.41,9.59291914]
[1747249421259,5.66829157,176.42,176.41,9.59291914]
[1747249421464,22.84764533,176.42,176.41,9.59291914]
[1747249425140,5.66829157,176.42,176.41,9.59291914]
[1747249425342,22.84764533,176.42,176.41,9.59291914]
[1747249431469,17.17935376,176.42,176.41,9.59291914]
[1747249431652,143.86802657,176.43,176.42,9.59291914]
[1747249432175,5.66802657,176.43,176.42,9.59291914]
[1747249432844,22.84738033,176.43,176.42,9.59291914]
[1747249441085,5.66802657,176.43,176.42,9.59291914]
[1747249441405,5.66776827,176.44,176.43,9.59291914]
[1747249441558,5.66776827,176.44,176.43,26.7722729]
[1747249441950,5.66776827,176.44,176.43,9.59291914]
[1747249442383,5.66700668,176.46,176.45,9.59291914]
[1747249442961,22.84636044,176.46,176.45,9.59291914]
[1747249445568,5.66700668,176.46,176.45,9.59291914]
[1747249446089,5.66678286,176.47,176.46,9.59291914]
[1747249446397,5.66572237,176.5,176.46,9.59291914]
[1747249446579,26.0,176.49,176.46,9.59291914]
[1747249447475,26.0,176.49,176.48,9.59291914]
[1747249447674,43.17935376,176.49,176.48,9.59291914]
[1747249448809,48.84539716,176.49,176.48,9.59291914]
[1747249451189,31.6660434,176.49,176.48,9.59291914]
[1747249451382,48.84539716,176.49,176.48,9.59291914]
[1747249451569,31.6660434,176.49,176.48,9.59291914]
[1747249451774,5.6660434,176.49,176.48,9.59291914]
[1747249454082,143.86582124,176.5,176.49,9.59291914]
[1747249454883,5.66508044,176.52,176.51,9.59291914]
[1747249459315,5.66448445,176.54,176.53,9.59291914]
[1747249461485,22.84383821,176.54,176.53,9.59291914]
[1747249465702,22.84383821,176.54,176.52,9.59291914]
[1747249465903,17.17935376,176.53,176.52,9.59291914]
[1747249467822,22.84411329,176.53,176.52,9.59291914]
[1747249474844,22.84411329,176.53,176.46,17.17935376]
[1747249474845,48.84411329,176.53,176.51,9.59291914]
[1747249475136,26.0,176.5,176.49,9.59291914]
[1747249475303,43.17935376,176.5,176.49,9.59291914]
[1747249476248,48.84507613,176.5,176.49,9.59291914]
[1747249476754,48.84507613,176.5,176.47,9.59291914]
[1747249476914,48.84507613,176.5,176.48,9.59291914]
[1747249476915,138.2,176.49,176.48,9.59291914]
[1747249477111,155.37935376,176.49,176.48,9.59291914]
[1747249478239,161.04539716,176.49,176.48,9.59291914]
[1747249480029,163.99940902,176.49,176.48,9.59291914]
[1747249480911,146.82005526,176.49,176.48,9.59291914]
[1747249481135,143.8660434,176.49,176.48,9.59291914]
[1747249481941,163.99931989,176.49,176.48,9.59291914]
[1747249483045,161.04539716,176.49,176.48,9.59291914]
[1747249489652,163.99933629,176.49,176.47,9.59291914]
[1747249489851,17.17935376,176.48,176.47,9.59291914]
[1747249490143,22.84571822,176.48,176.47,9.59291914]
[1747249490554,5.66636446,176.48,176.47,9.59291914]
[1747249491423,22.84571822,176.48,176.47,9.59291914]
[1747249495970,5.66636446,176.48,176.47,9.59291914]
[1747249496130,22.84571822,176.48,176.47,9.59291914]
[1747249500755,48.84571822,176.48,176.47,9.59291914]
[1747249500957,40.02507198,176.48,176.46,9.59291914]
[1747249501269,44.73765376,176.47,176.46,9.59291914]
[1747249502065,44.73765376,176.47,176.45,9.59291914]
[1747249502267,43.17935376,176.46,176.44,9.59291914]
[1747249502434,22.84668161,176.45,176.44,9.59291914]
[1747249503145,63.01500124,176.45,176.41,9.59291914]
[1747249503343,26.0,176.43,176.42,9.59291914]
[1747249503581,26.0,176.43,176.35,1.5055]
[1747249503582,5.66732785,176.45,176.44,9.59291914]
[1747249504282,28.95369763,176.49,176.48,9.59291914]
[1747249504486,5.6660434,176.49,176.48,9.59291914]
[1747249504948,22.84539716,176.49,176.48,9.59291914]
[1747249508441,5.66545331,176.51,176.5,9.59291914]
[1747249510568,190.63575105,176.52,176.51,9.59291914]
[1747249510773,167.79121006,176.52,176.51,9.59291914]
[1747249510970,173.4562905,176.52,176.51,9.59291914]
[1747249511271,167.79121006,176.52,176.51,9.59291914]
[1747249511473,173.4562905,176.52,176.51,9.59291914]
[1747249512939,35.2562905,176.52,176.51,9.59291914]
[1747249514946,52.43564426,176.52,176.51,9.59291914]
[1747249518117,78.43564426,176.52,176.51,9.59291914]
[1747249520103,61.2562905,176.52,176.51,9.59291914]
[1747249520302,35.2562905,176.52,176.51,9.59291914]
[1747249524908,29.59121006,176.52,176.51,26.7722729]
[1747249526410,5.66481616,176.53,176.51,26.7722729]
[1747249527245,31.66481616,176.53,176.52,9.59291914]
[1747249527408,164.2,176.52,176.5,9.59291914]
[1747249527603,26.0,176.5,176.49,9.59291914]
[1747249527919,43.17935376,176.5,176.49,9.59291914]
[1747249528431,48.84507613,176.5,176.49,9.59291914]
[1747249531544,48.84507613,176.5,176.48,9.59291914]
[1747249531745,17.17935376,176.49,176.48,9.59291914]
[1747249531956,17.17935376,176.49,176.47,9.59291914]
[1747249532128,34.35870752,176.48,176.46,9.59291914]
[1747249532328,43.17935376,176.47,176.45,9.59291914]
[1747249532646,22.84636044,176.46,176.45,9.59291914]
[1747249533230,138.2,176.45,176.43,9.59291914]
[1747249533429,17.17935376,176.44,176.43,9.59291914]
[1747249534560,143.86732785,176.45,176.44,9.59291914]
[1747249534731,5.66732785,176.45,176.44,9.59291914]
[1747249536858,5.66700668,176.46,176.44,9.59291914]
[1747249537162,5.66700668,176.46,176.45,9.59291914]
[1747249538844,22.84636044,176.46,176.45,9.59291914]
[1747249540261,5.66700668,176.46,176.45,9.59291914]
[1747249540463,22.84636044,176.46,176.45,9.59291914]
[1747249542166,14.16668102,176.48,176.47,9.59291914]
[1747249542167,5.66636446,176.48,176.47,9.59291914]
[1747249542381,5.66636446,176.48,176.47,26.7722729]
[1747249543365,5.66572237,176.5,176.49,9.59291914]
[1747249544261,5.66411781,176.55,176.54,9.59291914]
[1747249544447,5.66283481,176.59,176.58,9.59291914]
[1747249544647,22.84218857,176.59,176.58,9.59291914]
[1747249545246,48.84218857,176.59,176.58,9.59291914]
[1747249553881,31.66283481,176.59,176.58,9.59291914]
[1747249554080,48.84218857,176.59,176.58,9.59291914]
[1747249554992,31.66283481,176.59,176.58,9.59291914]
[1747249555565,48.84218857,176.59,176.58,9.59291914]
[1747249557368,31.66283481,176.59,176.58,9.59291914]
[1747249559592,5.66283481,176.59,176.58,9.59291914]
[1747249560610,22.84218857,176.59,176.58,9.59291914]
[1747249562137,5.66283481,176.59,176.58,9.59291914]
[1747249562297,22.84218857,176.59,176.58,9.59291914]
[1747249563901,44.39614168,176.6,176.58,9.59291914]
[1747249563902,44.39614168,176.6,176.59,9.59291914]
[1747249564208,44.39614168,176.6,176.59,45.7062449]
[1747249564405,5.66027056,176.67,176.62,9.59291914]
[1747249564712,5.66027056,176.67,176.59,36.11332576]
[1747249564713,36.99030072,176.67,176.66,9.59291914]
[1747249567477,5.66027056,176.67,176.66,9.59291914]
[1747249569798,5.66000851,176.68,176.67,9.59291914]
[1747249570310,5.6589893,176.71,176.67,9.59291914]
[1747249570504,22.83834306,176.71,176.67,9.59291914]
[1747249571025,5.6589893,176.71,176.7,9.59291914]
[1747249572518,5.65866908,176.72,176.7,9.59291914]
[1747249572815,5.65866908,176.72,176.71,9.59291914]
[1747249575107,22.8373825,176.74,176.73,9.59291914]
[1747249576415,5.65802874,176.74,176.73,9.59291914]
[1747249579342,24.75026943,176.77,176.74,9.59291914]
[1747249579522,43.17935376,176.78,176.76,9.59291914]
[1747249579717,5.6567485,176.78,176.77,9.59291914]
[1747249581332,22.83610226,176.78,176.77,9.59291914]
[1747249584211,5.6567485,176.78,176.77,9.59291914]
[1747249584728,22.83610226,176.78,176.77,9.59291914]
[1747249588421,26.0,176.77,176.75,9.59291914]
[1747249588620,17.17935376,176.76,176.75,9.59291914]
[1747249589937,22.8367423,176.76,176.75,9.59291914]
[1747249591547,5.65738854,176.76,176.75,9.59291914]
[1747249591726,22.8367423,176.76,176.75,9.59291914]
[1747249597044,5.65738854,176.76,176.75,9.59291914]
[1747249597243,22.8367423,176.76,176.75,9.59291914]
[1747249602177,5.65738854,176.76,176.75,9.59291914]
[1747249602358,22.8367423,176.76,176.75,9.59291914]
[1747249608295,5.65738854,176.76,176.75,9.59291914]
[1747249608581,22.8367423,176.76,176.75,9.59291914]
[1747249608778,5.65738854,176.76,176.75,9.59291914]
[1747249609357,5.6567485,176.78,176.77,9.59291914]
[1747249611982,22.83610226,176.78,176.77,9.59291914]
[1747249616773,5.6567485,176.78,176.77,9.59291914]
[1747249617582,5.65652444,176.79,176.78,9.59291914]
[1747249618979,5.65604199,176.81,176.79,9.59291914]
[1747249619192,5.65604199,176.81,176.8,9.59291914]
[1747249619482,5.65555899,176.82,176.81,9.59291914]
[1747249620699,2.94784422,176.83,176.82,9.59291914]
[1747249620896,5.65418975,176.86,176.85,9.59291914]
[1747249621102,48.83354351,176.86,176.85,9.59291914]
[1747249622403,48.83354351,176.86,176.84,9.59291914]
[1747249622603,48.83354351,176.86,176.83,9.59291914]
[1747249622604,43.17935376,176.85,176.83,9.59291914]
[1747249622810,17.17935376,176.84,176.83,9.59291914]
[1747249623018,22.83418298,176.84,176.83,9.59291914]
[1747249623623,48.83418298,176.84,176.82,9.59291914]
[1747249623920,17.17935376,176.83,176.82,9.59291914]
[1747249624125,17.17935376,176.83,176.81,9.59291914]
[1747249624321,26.0,176.81,176.8,9.59291914]
[1747249624496,43.17935376,176.81,176.8,9.59291914]
[1747249624917,26.0,176.81,176.8,9.59291914]
[1747249625102,48.83514245,176.81,176.8,9.59291914]
[1747249625841,48.83514245,176.81,176.79,9.59291914]
[1747249626022,31.65578869,176.81,176.8,9.59291914]
[1747249626200,48.83514245,176.81,176.8,9.59291914]
[1747249627812,31.65578869,176.81,176.8,9.59291914]
[1747249628120,48.83514245,176.81,176.8,9.59291914]
[1747249628312,5.65578869,176.81,176.8,9.59291914]
[1747249629244,5.65546883,176.82,176.81,9.59291914]
[1747249629909,22.83482259,176.82,176.81,9.59291914]
[1747249630418,5.65546883,176.82,176.81,9.59291914]
[1747249630619,22.83482259,176.82,176.81,9.59291914]
[1747249630819,5.65546883,176.82,176.81,9.59291914]
[1747249631551,161.44736176,176.87,176.85,9.59291914]
[1747249631705,25.78058559,176.87,176.86,9.59291914]
[1747249631908,51.78058559,176.87,176.86,9.59291914]
[1747249635218,26.0,176.84,176.83,9.59291914]
[1747249635418,43.17935376,176.84,176.83,9.59291914]
[1747249635828,26.0,176.84,176.83,9.59291914]
[1747249636150,43.17935376,176.84,176.83,9.59291914]
[1747249636335,48.83418298,176.84,176.83,9.59291914]
[1747249642704,50.33648298,176.84,176.8,9.59291914]
[1747249642889,64.47355604,176.84,176.8,9.59291914]
[1747249643060,17.17935376,176.81,176.8,9.59291914]
[1747249643262,47.29420228,176.84,176.8,9.59291914]
[1747249644170,47.29420228,176.84,176.82,9.59291914]
[1747249644374,47.29420228,176.84,176.83,9.59291914]
[1747249644607,64.47355604,176.84,176.83,9.59291914]
[1747249645961,64.47355604,176.84,176.81,9.59291914]
[1747249646167,64.47355604,176.84,176.83,9.59291914]
[1747249647492,64.47355604,176.84,176.81,9.59291914]
[1747249647783,64.47355604,176.84,176.83,9.59291914]
[1747249649186,62.97125604,176.84,176.83,9.59291914]
[1747249649569,36.97125604,176.84,176.83,9.59291914]
[1747249653169,19.79190228,176.84,176.83,9.59291914]
[1747249653797,5.65482922,176.84,176.83,9.59291914]
[1747249655395,22.83418298,176.84,176.83,9.59291914]
[1747249661072,5.65482922,176.84,176.83,9.59291914]
[1747249662588,22.83418298,176.84,176.83,9.59291914]
[1747249663408,5.65482922,176.84,176.83,9.59291914]
[1747249663907,22.83418298,176.84,176.83,9.59291914]
[1747249667095,5.65482922,176.84,176.83,9.59291914]
[1747249671722,5.65482922,176.84,176.83,26.7722729]
[1747249671876,5.65482922,176.84,176.83,9.59291914]
[1747249672082,46.12680434,176.87,176.86,9.59291914]
[1747249672315,51.78067441,176.87,176.86,9.59291914]
[1747249672491,34.60132065,176.87,176.86,9.59291914]
[1747249674515,2.94745058,176.87,176.86,9.59291914]
[1747249674705,156.31479266,176.92,176.91,9.59291914]
[1747249674706,25.37935376,176.92,176.91,9.59291914]
[1747249674909,54.32571743,176.92,176.91,9.59291914]
[1747249675411,59.97798964,176.92,176.91,9.59291914]
[1747249676288,13.85227221,176.92,176.91,9.59291914]
[1747249678803,31.03162597,176.92,176.91,9.59291914]
[1747249680292,57.03162597,176.92,176.91,9.59291914]
[1747249682683,32.64742597,176.92,176.9,9.59291914]
[1747249682887,26.0,176.89,176.88,9.59291914]
[1747249683109,43.17935376,176.89,176.88,9.59291914]
[1747249683983,48.83258458,176.89,176.87,9.59291914]
[1747249684308,31.65323082,176.89,176.88,9.59291914]
[1747249685003,31.65323082,176.89,176.87,9.59291914]
[1747249685202,31.65323082,176.89,176.86,9.59291914]
[1747249685396,17.17935376,176.87,176.86,9.59291914]
[1747249685592,26.0,176.84,176.83,9.59291914]
[1747249685792,43.17935376,176.84,176.83,9.59291914]
[1747249686205,48.83418298,176.84,176.83,9.59291914]
[1747249686928,48.83418298,176.84,176.8,9.59291914]
[1747249687100,48.83418298,176.84,176.83,9.59291914]
[1747249687101,31.65482922,176.84,176.83,9.59291914]
[1747249687297,62.97125604,176.84,176.83,9.59291914]
[1747249689313,45.79190228,176.84,176.83,9.59291914]
[1747249689651,62.97125604,176.84,176.83,9.59291914]
[1747249690394,62.97125604,176.84,176.81,9.59291914]
[1747249690726,17.17935376,176.82,176.81,9.59291914]
[1747249691734,22.83482259,176.82,176.81,9.59291914]
[1747249692901,26.0,176.79,176.78,9.59291914]
[1747249693222,43.17935376,176.79,176.78,9.59291914]
[1747249693826,48.83578229,176.79,176.78,9.59291914]
[1747249694829,48.83578229,176.79,176.69,20.16]
[1747249694830,1.6489,176.78,176.75,9.59291914]
[1747249695007,8.0331,176.75,176.65,9.59291914]
[1747249695220,43.17935376,176.66,176.65,9.59291914]
[1747249695813,48.83994472,176.66,176.65,9.59291914]
[1747249698538,31.66059096,176.66,176.65,9.59291914]
[1747249698717,48.83994472,176.66,176.65,9.59291914]
[1747249699524,8.60948958,176.68,176.65,9.59291914]
[1747249699741,48.83903567,176.69,176.68,9.59291914]
[1747249701213,22.83872877,176.7,176.69,9.59291914]
[1747249704119,17.09500196,176.73,176.72,9.59291914]
[1747249704120,28.94873415,176.73,176.72,9.59291914]
[1747249704316,8.60708304,176.73,176.72,9.59291914]
[1747249704541,25.7864368,176.73,176.72,9.59291914]
[1747249704729,51.7864368,176.73,176.72,9.59291914]
[1747249723438,25.7864368,176.73,176.72,9.59291914]
[1747249723768,5.65738854,176.76,176.75,9.59291914]
[1747249724458,5.65713706,176.77,176.76,9.59291914]
[1747249726274,22.83649082,176.77,176.76,9.59291914]
[1747249729558,5.65713706,176.77,176.76,9.59291914]
[1747249729890,22.83649082,176.77,176.76,9.59291914]
[1747249730851,48.83649082,176.77,176.76,9.59291914]
[1747249735619,26.0,176.74,176.7,9.59291914]
[1747249735898,17.17935376,176.72,176.71,9.59291914]
[1747249736860,22.83802284,176.72,176.71,9.59291914]
[1747249737188,40.0173766,176.72,176.71,9.59291914]
[1747249737691,26.0,176.7,176.69,9.59291914]
[1747249737852,43.17935376,176.7,176.69,9.59291914]
[1747249738895,48.83866332,176.7,176.69,9.59291914]
[1747249741490,178.32,176.75,176.74,9.59291914]
[1747249741491,5.65770862,176.75,176.74,9.59291914]
[1747249743105,5.65738854,176.76,176.74,9.59291914]
[1747249743405,5.65738854,176.76,176.75,9.59291914]
[1747249744875,22.8367423,176.76,176.75,9.59291914]
[1747249749249,5.65738854,176.76,176.75,9.59291914]
[1747249749447,17.17935376,176.77,176.75,9.59291914]
[1747249749448,2.94813039,176.78,176.77,9.59291914]
[1747249749608,8.60493336,176.78,176.77,26.7722729]
[1747249749808,8.60493336,176.78,176.77,9.59291914]
[1747249751514,8.60487889,176.78,176.77,9.59291914]
[1747249752810,5.65581528,176.81,176.8,9.59291914]
[1747249753338,22.83516904,176.81,176.8,9.59291914]
[1747249754243,5.65557565,176.82,176.8,26.7722729]
[1747249754930,26.0,176.84,176.8,9.59291914]
[1747249755136,5.65514901,176.83,176.82,9.59291914]
[1747249760840,5.65482922,176.84,176.82,9.59291914]
[1747249761047,22.83418298,176.84,176.82,9.59291914]
[1747249761546,22.83418298,176.84,176.83,9.59291914]
[1747249771858,5.65482922,176.84,176.83,9.59291914]
[1747249780275,5.65450947,176.85,176.83,9.59291914]
[1747249780770,5.65450947,176.85,176.84,9.59291914]
[1747249782484,22.83386323,176.85,176.84,9.59291914]
[1747249785259,8.60113245,176.87,176.86,9.59291914]
[1747249785752,22.83322383,176.87,176.86,9.59291914]
[1747249797108,2.94697987,176.88,176.86,9.59291914]
[1747249797265,17.17935376,176.9,176.89,9.59291914]
[1747249797465,20.12620334,176.9,176.89,9.59291914]
[1747249797776,25.77911458,176.9,176.89,9.59291914]
[1747249800674,39.9113927,176.9,176.87,9.59291914]
[1747249800893,22.73203894,176.9,176.89,9.59291914]
[1747249801205,39.9113927,176.9,176.89,9.59291914]
[1747249801564,8.59976082,176.9,176.89,9.59291914]
[1747249801764,25.77911458,176.9,176.89,9.59291914]
[1747249804299,8.59976082,176.9,176.89,9.59291914]
[1747249804501,25.77911458,176.9,176.89,9.59291914]
[1747249805992,25.77911458,176.9,176.88,9.59291914]
[1747249806205,17.17935376,176.89,176.87,9.59291914]
[1747249806414,22.73203894,176.9,176.88,9.59291914]
[1747249806582,22.73203894,176.9,176.89,9.59291914]
[1747249806781,22.73203894,176.9,176.87,9.59291914]
[1747249806997,22.73203894,176.9,176.89,9.59291914]
[1747249807609,39.9113927,176.9,176.89,9.59291914]
[1747249808114,39.9113927,176.9,176.88,9.59291914]
[1747249808317,17.17935376,176.89,176.87,9.59291914]
[1747249808614,22.73203894,176.9,176.89,9.59291914]
[1747249808815,22.73203894,176.9,176.88,9.59291914]
[1747249809202,22.73203894,176.9,176.89,9.59291914]
[1747249809601,39.9113927,176.9,176.89,9.59291914]
[1747249810317,22.73203894,176.9,176.89,9.59291914]
[1747249810494,8.59976082,176.9,176.89,9.59291914]
[1747249811590,5.65291124,176.9,176.89,9.59291914]
[1747249812820,22.832265,176.9,176.89,9.59291914]
[1747249816197,13.85238812,176.92,176.91,9.59291914]
[1747249818027,8.2,176.92,176.91,26.7722729]
[1747249820109,8.2,176.92,176.91,9.59291914]
[1747249821809,8.2,176.92,176.91,26.7722729]
[1747249823724,8.2,176.92,176.91,45.7062449]
[1747249827532,8.2,176.92,176.91,51.35883661]
[1747249827723,8.2,176.92,176.91,58.00123661]
[1747249827927,8.2,176.92,176.91,59.1313455]
[1747249831032,8.2,176.92,176.91,142.0313455]
[1747249831223,8.2,176.92,176.91,140.90123661]
[1747249833434,8.2,176.92,176.91,128.6062449]
[1747249833807,8.2,176.92,176.91,45.7062449]
[1747249839628,8.2,176.92,176.91,46.83644501]
[1747249843446,25.98959363,177.08,176.99,28.52689114]
[1747249843745,1.5864,177.03,176.99,9.59291914]
[1747249843947,1.5864,177.03,176.99,26.7722729]
[1747249844927,24.41457618,177.03,176.99,9.59291914]
[1747249845158,19.67635376,177.0,176.99,9.59291914]
[1747249847145,2.497,177.0,176.99,9.59291914]
[1747249852269,8.14671751,177.0,176.99,9.59291914]
[1747249852427,2.497,177.0,176.99,9.59291914]
[1747249852854,8.14671751,177.0,176.99,9.59291914]
[1747249854154,25.32607127,177.0,176.99,9.59291914]
[1747249859241,8.14671751,177.0,176.99,9.59291914]
[1747249860769,2.497,177.0,176.99,9.59291914]
[1747249860948,2.497,177.0,176.99,26.7722729]
[1747249863643,2.497,177.0,176.99,9.59291914]
[1747249863842,8.14671751,177.0,176.99,9.59291914]
[1747249867154,25.32607127,177.0,176.99,9.59291914]
[1747249869907,8.14671751,177.0,176.99,9.59291914]
[1747249870079,2.497,177.0,176.99,26.7722729]
[1747249872046,8.14671751,177.0,176.99,9.59291914]
[1747249873982,25.32607127,177.0,176.99,9.59291914]
[1747249875586,8.14671751,177.0,176.99,9.59291914]
[1747249876566,25.32607127,177.0,176.99,9.59291914]
[1747249877485,26.97637127,177.0,176.99,9.59291914]
[1747249878950,2.497,177.0,176.99,26.7722729]
[1747249880471,8.14671751,177.0,176.99,9.59291914]
[1747249882775,25.32607127,177.0,176.99,9.59291914]
[1747249884877,25.32607127,177.0,176.98,9.59291914]
[1747249885085,17.17935376,176.99,176.98,9.59291914]
[1747249887407,22.82939048,176.99,176.98,9.59291914]
[1747249890776,5.65003672,176.99,176.98,9.59291914]
[1747249892182,8.14682998,177.0,176.99,9.59291914]
[1747249892797,25.32618374,177.0,176.99,9.59291914]
[1747249894897,8.14682998,177.0,176.99,9.59291914]
[1747249899318,25.32618374,177.0,176.99,9.59291914]
[1747249901522,8.14682998,177.0,176.99,9.59291914]
[1747249903220,25.32618374,177.0,176.99,9.59291914]
[1747249908329,25.32618374,177.0,176.98,9.59291914]
[1747249908510,22.82939048,176.99,176.98,9.59291914]
[1747249918825,1.6035,176.98,176.96,9.59291914]
[1747249919013,17.17935376,176.97,176.96,9.59291914]
[1747249919214,17.17935376,176.97,176.95,9.59291914]